[Event "Live Chess"]
[Site "Chess.com"]
[Date "2023.05.21"]
[Round "-"]
[White "martynstanley"]
[Black "CocheseUK"]
[Result "0-1"]
[WhiteElo "1006"]
[BlackElo "1057"]
[TimeControl "300"]
[EndTime "7:17:50 PDT"]
[Termination "CocheseUK won by checkmate"]

1. d4 {[%clk 0:04:59.4]} 1... d5 {[%clk 0:04:56.6]} 2. e3 {[%clk 0:04:58.7]}
2... Nc6 {[%clk 0:04:50.7]} 3. Bd3 {[%clk 0:04:58]} 3... Bd7 {[%clk 0:04:49]} 4.
c3 {[%clk 0:04:57.5]} 4... e6 {[%clk 0:04:39.5]} 5. f4 {[%clk 0:04:56.7]} 5...
Bd6 {[%clk 0:04:34.5]} 6. Nf3 {[%clk 0:04:56]} 6... Nf6 {[%clk 0:04:31.1]} 7.
O-O {[%clk 0:04:54.9]} 7... Ne4 {[%clk 0:04:26.6]} 8. Nbd2 {[%clk 0:04:53.6]}
8... O-O {[%clk 0:04:23.9]} 9. Ne5 {[%clk 0:04:52.5]} 9... Nxe5 {[%clk
0:04:08.8]} 10. fxe5 {[%clk 0:04:51.4]} 10... Be7 {[%clk 0:04:04.5]} 11. Rf3
{[%clk 0:04:48.7]} 11... Nxd2 {[%clk 0:04:01]} 12. Bxd2 {[%clk 0:04:47.8]} 12...
f6 {[%clk 0:03:59.5]} 13. Bxh7+ {[%clk 0:04:46.4]} 13... Kh8 {[%clk 0:03:34.9]}
14. Rh3 {[%clk 0:04:45.8]} 14... fxe5 {[%clk 0:03:27.9]} 15. Qh5 {[%clk
0:04:42.4]} 15... Rf6 {[%clk 0:03:09]} 16. dxe5 {[%clk 0:04:40.1]} 16... Rh6
{[%clk 0:03:04.2]} 17. Qg4 {[%clk 0:04:35.7]} 17... Kxh7 {[%clk 0:02:58.7]} 18.
Rxh6+ {[%clk 0:04:33.2]} 18... gxh6 {[%clk 0:02:56.3]} 19. e4 {[%clk 0:04:32.1]}
19... Bg5 {[%clk 0:02:52.6]} 20. Bxg5 {[%clk 0:04:30.1]} 20... Qxg5 {[%clk
0:02:50.2]} 21. Qxg5 {[%clk 0:04:29.1]} 21... hxg5 {[%clk 0:02:48.8]} 22. Rf1
{[%clk 0:04:27.7]} 22... Kg7 {[%clk 0:02:38.2]} 23. h3 {[%clk 0:04:24.9]} 23...
dxe4 {[%clk 0:02:36.1]} 24. g4 {[%clk 0:04:23.9]} 24... e3 {[%clk 0:02:34]} 25.
Re1 {[%clk 0:04:22]} 25... Rf8 {[%clk 0:02:31.2]} 26. Rxe3 {[%clk 0:04:20.7]}
26... Rf4 {[%clk 0:02:28.1]} 27. Kg2 {[%clk 0:04:17.6]} 27... Bc6+ {[%clk
0:02:22]} 28. Kg3 {[%clk 0:04:13.7]} 28... Kf7 {[%clk 0:02:16.7]} 29. h4 {[%clk
0:04:12.7]} 29... Kg6 {[%clk 0:01:57.2]} 30. hxg5 {[%clk 0:04:11.6]} 30... Kxg5
{[%clk 0:01:55.7]} 31. b3 {[%clk 0:04:08.7]} 31... Rxg4+ {[%clk 0:01:53.8]} 32.
Kf2 {[%clk 0:04:06.1]} 32... Rf4+ {[%clk 0:01:51.1]} 33. Ke2 {[%clk 0:04:02.9]}
33... Kg4 {[%clk 0:01:49.1]} 34. Kd2 {[%clk 0:04:01.1]} 34... Rf2+ {[%clk
0:01:43]} 35. Re2 {[%clk 0:03:59.8]} 35... Rxe2+ {[%clk 0:01:37.8]} 36. Kxe2
{[%clk 0:03:58.9]} 36... Bf3+ {[%clk 0:01:36.7]} 37. Ke3 {[%clk 0:03:57.7]}
37... c5 {[%clk 0:01:28]} 38. b4 {[%clk 0:03:55.9]} 38... cxb4 {[%clk
0:01:23.9]} 39. cxb4 {[%clk 0:03:55.2]} 39... b5 {[%clk 0:01:19.3]} 40. a3
{[%clk 0:03:54.4]} 40... a6 {[%clk 0:01:16.6]} 41. Kd4 {[%clk 0:03:53.8]} 41...
Kf4 {[%clk 0:01:14.2]} 42. Kc5 {[%clk 0:03:52.9]} 42... Kxe5 {[%clk 0:01:05.3]}
43. Kb6 {[%clk 0:03:51.6]} 43... Kd6 {[%clk 0:01:01.7]} 44. Kxa6 {[%clk
0:03:50.8]} 44... Kc6 {[%clk 0:00:59.6]} 45. a4 {[%clk 0:03:47.7]} 45... bxa4
{[%clk 0:00:42.8]} 46. b5+ {[%clk 0:03:45.5]} 46... Kc7 {[%clk 0:00:41.4]} 47.
Ka5 {[%clk 0:03:44.6]} 47... Be2 {[%clk 0:00:37.7]} 48. Kxa4 {[%clk 0:03:43.8]}
48... Bxb5+ {[%clk 0:00:36.5]} 49. Kxb5 {[%clk 0:03:43.2]} 49... Kd6 {[%clk
0:00:35.5]} 50. Kc4 {[%clk 0:03:42.8]} 50... e5 {[%clk 0:00:31.5]} 51. Kd3
{[%clk 0:03:41.5]} 51... Kd5 {[%clk 0:00:29.9]} 52. Ke3 {[%clk 0:03:40.9]} 52...
e4 {[%clk 0:00:28.2]} 53. Kd2 {[%clk 0:03:37.2]} 53... Kd4 {[%clk 0:00:27.1]}
54. Ke2 {[%clk 0:03:36.3]} 54... e3 {[%clk 0:00:24.3]} 55. Kd1 {[%clk
0:03:33.9]} 55... Kd3 {[%clk 0:00:22.3]} 56. Ke1 {[%clk 0:03:33]} 56... e2
{[%clk 0:00:20.5]} 57. Kf2 {[%clk 0:03:28.5]} 57... Kd2 {[%clk 0:00:19.7]} 58.
Kf3 {[%clk 0:03:27.3]} 58... e1=Q {[%clk 0:00:18.1]} 59. Kf4 {[%clk 0:03:26]}
59... Qe3+ {[%clk 0:00:17.2]} 60. Kf5 {[%clk 0:03:25.3]} 60... Kd3 {[%clk
0:00:16.7]} 61. Kf6 {[%clk 0:03:24.7]} 61... Qe4 {[%clk 0:00:16]} 62. Kf7 {[%clk
0:03:23.4]} 62... Kd4 {[%clk 0:00:15.4]} 63. Kg7 {[%clk 0:03:22.6]} 63... Kd5
{[%clk 0:00:14.4]} 64. Kh6 {[%clk 0:03:20.7]} 64... Ke6 {[%clk 0:00:13]} 65. Kg7
{[%clk 0:03:19.3]} 65... Ke7 {[%clk 0:00:10.3]} 66. Kh6 {[%clk 0:03:15.5]} 66...
Qg4 {[%clk 0:00:09.2]} 67. Kh7 {[%clk 0:03:13.7]} 67... Kf7 {[%clk 0:00:08.6]}
68. Kh8 {[%clk 0:03:12.7]} 68... Qg8# {[%clk 0:00:07.5]} 0-1

[Event "Live Chess"]
[Site "Chess.com"]
[Date "2023.05.21"]
[Round "-"]
[White "hturner40"]
[Black "luckywookie"]
[Result "1-0"]
[WhiteElo "1760"]
[BlackElo "818"]
[TimeControl "300"]
[EndTime "7:17:59 PDT"]
[Termination "hturner40 won by checkmate"]

1. Nf3 {[%clk 0:04:58]} 1... c6 {[%clk 0:04:48.5]} 2. Nc3 {[%clk 0:04:55]} 2...
d5 {[%clk 0:04:47.3]} 3. e4 {[%clk 0:04:53.9]} 3... Bg4 {[%clk 0:04:41.1]} 4. h3
{[%clk 0:04:49.6]} 4... Bxf3 {[%clk 0:04:38.2]} 5. Qxf3 {[%clk 0:04:47.9]} 5...
e6 {[%clk 0:04:27.8]} 6. d4 {[%clk 0:04:45.4]} 6... Bb4 {[%clk 0:04:21.6]} 7. e5
{[%clk 0:04:35.6]} 7... Nd7 {[%clk 0:04:11.3]} 8. a3 {[%clk 0:04:33]} 8... Bxc3+
{[%clk 0:04:09.1]} 9. bxc3 {[%clk 0:04:29.7]} 9... Nb6 {[%clk 0:04:07.5]} 10.
Qg3 {[%clk 0:04:26.4]} 10... g6 {[%clk 0:03:41.1]} 11. Bg5 {[%clk 0:04:14.1]}
11... Qd7 {[%clk 0:03:26.4]} 12. Qh4 {[%clk 0:04:01.8]} 12... h6 {[%clk
0:03:18.6]} 13. a4 {[%clk 0:03:44.4]} 13... Nc4 {[%clk 0:03:16.2]} 14. Bxc4
{[%clk 0:03:38]} 14... dxc4 {[%clk 0:03:14.6]} 15. O-O {[%clk 0:03:15.9]} 15...
c5 {[%clk 0:02:39.8]} 16. Rfd1 {[%clk 0:03:02.9]} 16... b6 {[%clk 0:02:25.1]}
17. dxc5 {[%clk 0:02:59.1]} 17... Qc6 {[%clk 0:02:23.7]} 18. Rd6 {[%clk
0:02:49.2]} 18... Qxc5 {[%clk 0:02:20.6]} 19. Rad1 {[%clk 0:02:47.5]} 19... Qxe5
{[%clk 0:02:10.6]} 20. Rd8+ {[%clk 0:02:44.2]} 20... Rxd8 {[%clk 0:02:06.9]} 21.
Rxd8# {[%clk 0:02:42.8]} 1-0

[Event "Live Chess"]
[Site "Chess.com"]
[Date "2023.05.21"]
[Round "-"]
[White "AttackingSnowLeopard"]
[Black "diana21strabt"]
[Result "1-0"]
[WhiteElo "2171"]
[BlackElo "1755"]
[TimeControl "300"]
[EndTime "7:18:00 PDT"]
[Termination "AttackingSnowLeopard won by resignation"]

1. Nf3 {[%clk 0:04:58.7]} 1... Nf6 {[%clk 0:04:58.5]} 2. d4 {[%clk 0:04:57.3]}
2... g6 {[%clk 0:04:57.3]} 3. c4 {[%clk 0:04:56.3]} 3... Bg7 {[%clk 0:04:56.7]}
4. Nc3 {[%clk 0:04:55.3]} 4... O-O {[%clk 0:04:55.8]} 5. e4 {[%clk 0:04:54.1]}
5... d6 {[%clk 0:04:54.9]} 6. Be2 {[%clk 0:04:46.6]} 6... Nbd7 {[%clk
0:04:54.1]} 7. O-O {[%clk 0:04:44.3]} 7... e5 {[%clk 0:04:53.1]} 8. Re1 {[%clk
0:04:43]} 8... exd4 {[%clk 0:04:51.9]} 9. Nxd4 {[%clk 0:04:41.7]} 9... Nc5
{[%clk 0:04:51.3]} 10. Bf1 {[%clk 0:04:41]} 10... a5 {[%clk 0:04:49.7]} 11. f3
{[%clk 0:04:38.8]} 11... Re8 {[%clk 0:04:48.1]} 12. Be3 {[%clk 0:04:37.8]} 12...
Ne6 {[%clk 0:04:47.2]} 13. Qd2 {[%clk 0:04:28.5]} 13... Nxd4 {[%clk 0:04:44.7]}
14. Bxd4 {[%clk 0:03:59.7]} 14... Be6 {[%clk 0:04:42.3]} 15. Nd5 {[%clk
0:03:56.6]} 15... c6 {[%clk 0:04:38.4]} 16. Nb6 {[%clk 0:03:54.4]} 16... c5
{[%clk 0:04:33.5]} 17. Nxa8 {[%clk 0:03:46.1]} 17... cxd4 {[%clk 0:04:30.9]} 18.
Qxd4 {[%clk 0:03:44.3]} 18... Qxa8 {[%clk 0:04:29.3]} 19. Qxd6 {[%clk
0:03:42.8]} 19... Qa7+ {[%clk 0:04:24.3]} 20. Kh1 {[%clk 0:03:38.8]} 20... Bf8
{[%clk 0:04:22.9]} 21. Qf4 {[%clk 0:03:34.5]} 21... Nh5 {[%clk 0:04:16.3]} 22.
Qg5 {[%clk 0:03:26.6]} 22... h6 {[%clk 0:04:05.9]} 23. Qb5 {[%clk 0:03:24.4]}
23... Rd8 {[%clk 0:03:55.5]} 24. Be2 {[%clk 0:03:06.6]} 24... Bb4 {[%clk
0:03:53.3]} 25. Rf1 {[%clk 0:03:03.9]} 25... Nf4 {[%clk 0:03:50.8]} 26. Bd1
{[%clk 0:03:00.7]} 26... Qe3 {[%clk 0:03:43]} 27. Bb3 {[%clk 0:02:42.7]} 27...
Qe2 {[%clk 0:03:27.5]} 28. Rg1 {[%clk 0:02:34.7]} 28... Rd2 {[%clk 0:03:05.7]}
29. Rae1 {[%clk 0:02:18.3]} 29... Qd3 {[%clk 0:02:47.9]} 30. Qxb7 {[%clk
0:02:02.8]} 30... Rxg2 {[%clk 0:02:35.9]} 31. Qb8+ {[%clk 0:01:55.3]} 31... Kh7
{[%clk 0:02:33]} 32. Qxf4 {[%clk 0:01:54.8]} 32... Rxb2 {[%clk 0:02:19]} 33. c5
{[%clk 0:01:49.6]} 33... Bxb3 {[%clk 0:02:08.5]} 34. axb3 {[%clk 0:01:48.2]}
34... Qxb3 {[%clk 0:02:06.2]} 35. c6 {[%clk 0:01:46.9]} 35... Bxe1 {[%clk
0:02:01.9]} 36. Rxe1 {[%clk 0:01:40.3]} 36... Rb1 {[%clk 0:01:47.9]} 37. Rxb1
{[%clk 0:01:32.7]} 37... Qxb1+ {[%clk 0:01:46.6]} 38. Kg2 {[%clk 0:01:32.3]}
38... Qc2+ {[%clk 0:01:45.1]} 39. Kg3 {[%clk 0:01:31.3]} 39... Qxc6 {[%clk
0:01:38.6]} 40. Qxf7+ {[%clk 0:01:29.6]} 40... Kh8 {[%clk 0:01:37.4]} 41. Qf8+
{[%clk 0:01:28.3]} 41... Kh7 {[%clk 0:01:36.5]} 42. Qe7+ {[%clk 0:01:27.8]}
42... Kh8 {[%clk 0:01:33.5]} 43. Qd8+ {[%clk 0:01:27.4]} 43... Kg7 {[%clk
0:01:27.8]} 44. Qxa5 {[%clk 0:01:26.4]} 44... Qd6+ {[%clk 0:01:26.3]} 45. Kg2
{[%clk 0:01:24]} 45... h5 {[%clk 0:01:24.6]} 46. Qd5 {[%clk 0:01:21.6]} 46...
Qf4 {[%clk 0:01:21]} 47. e5 {[%clk 0:01:04.3]} 47... h4 {[%clk 0:01:19.7]} 48.
Qe4 {[%clk 0:00:59.7]} 48... Qd2+ {[%clk 0:01:17]} 49. Kh3 {[%clk 0:00:58.4]}
49... g5 {[%clk 0:01:08.2]} 50. e6 {[%clk 0:00:43.3]} 50... Qd8 {[%clk
0:01:04.4]} 51. Kg4 {[%clk 0:00:39.1]} 51... Qe7 {[%clk 0:00:56.1]} 52. Qe5+
{[%clk 0:00:37.7]} 52... Kh6 {[%clk 0:00:51.2]} 53. Qf5 {[%clk 0:00:31.9]} 53...
Qb4+ {[%clk 0:00:49.1]} 54. Kh3 {[%clk 0:00:30.7]} 54... Qe7 {[%clk 0:00:37.5]}
55. Qf7 {[%clk 0:00:25]} 55... Qxf7 {[%clk 0:00:35.5]} 56. exf7 {[%clk
0:00:23.8]} 56... Kg7 {[%clk 0:00:34.8]} 57. Kg4 {[%clk 0:00:23.4]} 57... Kxf7
{[%clk 0:00:34]} 58. Kxg5 {[%clk 0:00:23.1]} 58... h3 {[%clk 0:00:33.1]} 59. Kg4
{[%clk 0:00:22.3]} 59... Kf6 {[%clk 0:00:32.6]} 60. Kxh3 {[%clk 0:00:22.2]}
60... Kf5 {[%clk 0:00:32.2]} 61. Kg3 {[%clk 0:00:22.1]} 61... Kg5 {[%clk
0:00:31.2]} 62. f4+ {[%clk 0:00:22]} 62... Kf5 {[%clk 0:00:30.4]} 63. Kf3 {[%clk
0:00:21.9]} 63... Kg6 {[%clk 0:00:29.3]} 64. Kg4 {[%clk 0:00:21.8]} 64... Kf6
{[%clk 0:00:28.3]} 65. f5 {[%clk 0:00:21.7]} 65... Kf7 {[%clk 0:00:27.5]} 66.
Kf4 {[%clk 0:00:21.6]} 66... Kf6 {[%clk 0:00:26.8]} 67. h4 {[%clk 0:00:20.4]}
67... Kg7 {[%clk 0:00:25.9]} 68. h5 {[%clk 0:00:20.3]} 68... Kf6 {[%clk
0:00:25]} 69. Kg4 {[%clk 0:00:19.2]} 69... Kg7 {[%clk 0:00:24.2]} 70. Kg5 {[%clk
0:00:19.1]} 70... Kf7 {[%clk 0:00:23.4]} 71. h6 {[%clk 0:00:19]} 71... Kg8
{[%clk 0:00:22.7]} 72. f6 {[%clk 0:00:18.6]} 72... Kh7 {[%clk 0:00:22]} 73. Kf5
{[%clk 0:00:18.5]} 73... Kxh6 {[%clk 0:00:21]} 74. Ke6 {[%clk 0:00:18.4]} 74...
Kg6 {[%clk 0:00:20.1]} 75. Ke7 {[%clk 0:00:18.3]} 75... Kg5 {[%clk 0:00:20]} 76.
f7 {[%clk 0:00:18.2]} 76... Kf4 {[%clk 0:00:19.9]} 77. f8=Q+ {[%clk 0:00:18.1]}
77... Kg4 {[%clk 0:00:19.6]} 78. Ke6 {[%clk 0:00:17.6]} 78... Kg3 {[%clk
0:00:17.1]} 79. Ke5 {[%clk 0:00:17.5]} 79... Kg4 {[%clk 0:00:16]} 80. Ke4 {[%clk
0:00:17.4]} 80... Kg5 {[%clk 0:00:14.9]} 81. Qf7 {[%clk 0:00:17]} 81... Kg4
{[%clk 0:00:13.8]} 82. Qg6+ {[%clk 0:00:16.3]} 82... Kh4 {[%clk 0:00:12.4]} 83.
Kf3 {[%clk 0:00:16]} 1-0

[Event "Live Chess"]
[Site "Chess.com"]
[Date "2023.05.21"]
[Round "-"]
[White "JoRoSaR"]
[Black "robotking06"]
[Result "1-0"]
[WhiteElo "1674"]
[BlackElo "308"]
[TimeControl "300"]
[EndTime "7:18:02 PDT"]
[Termination "JoRoSaR won by resignation"]

1. e4 {[%clk 0:04:59.7]} 1... c6 {[%clk 0:04:58.9]} 2. d4 {[%clk 0:04:58.7]}
2... d5 {[%clk 0:04:57.7]} 3. exd5 {[%clk 0:04:58.6]} 3... cxd5 {[%clk
0:04:56.8]} 4. Bd3 {[%clk 0:04:57.5]} 4... Nf6 {[%clk 0:04:49.8]} 5. c3 {[%clk
0:04:54.4]} 5... Bg4 {[%clk 0:04:48.6]} 6. Qb3 {[%clk 0:04:53.4]} 6... e6 {[%clk
0:04:35.6]} 7. Qxb7 {[%clk 0:04:51.4]} 7... Nbd7 {[%clk 0:04:22.5]} 8. Bf4
{[%clk 0:04:43.8]} 8... Rb8 {[%clk 0:04:13.9]} 9. Bxb8 {[%clk 0:04:42.1]} 9...
Nxb8 {[%clk 0:04:10.6]} 10. Bb5+ {[%clk 0:04:40.4]} 10... Nbd7 {[%clk
0:04:05.2]} 11. Nd2 {[%clk 0:04:39.1]} 11... Qb8 {[%clk 0:04:02.2]} 12. Qxb8+
{[%clk 0:04:36.3]} 12... Ke7 {[%clk 0:03:58]} 13. Qxa7 {[%clk 0:04:35.7]} 1-0

[Event "Live Chess"]
[Site "Chess.com"]
[Date "2023.05.21"]
[Round "-"]
[White "elephantgerrald"]
[Black "Biranidun"]
[Result "0-1"]
[WhiteElo "662"]
[BlackElo "2518"]
[TimeControl "300"]
[EndTime "7:18:03 PDT"]
[Termination "Biranidun won by checkmate"]

1. d4 {[%clk 0:04:58.7]} 1... Nf6 {[%clk 0:04:58.9]} 2. c3 {[%clk 0:04:56.3]}
2... g6 {[%clk 0:04:58.4]} 3. Nf3 {[%clk 0:04:54.1]} 3... Bg7 {[%clk 0:04:57.9]}
4. Bg5 {[%clk 0:04:51.5]} 4... O-O {[%clk 0:04:55.2]} 5. Nbd2 {[%clk 0:04:48.5]}
5... d6 {[%clk 0:04:54.4]} 6. Qb3 {[%clk 0:04:47.1]} 6... Nbd7 {[%clk
0:04:51.6]} 7. O-O-O {[%clk 0:04:45.2]} 7... c5 {[%clk 0:04:49.1]} 8. dxc5
{[%clk 0:04:41.9]} 8... Nxc5 {[%clk 0:04:46.1]} 9. Qc2 {[%clk 0:04:33.4]} 9...
Bf5 {[%clk 0:04:44.9]} 10. e4 {[%clk 0:04:25.4]} 10... Nfxe4 {[%clk 0:04:44]}
11. Re1 {[%clk 0:04:20.8]} 11... Nxg5 {[%clk 0:04:41.8]} 12. Qd1 {[%clk
0:04:14.9]} 12... Nxf3 {[%clk 0:04:40.8]} 13. Nxf3 {[%clk 0:04:13]} 13... Qa5
{[%clk 0:04:39.8]} 14. Rxe7 {[%clk 0:04:10]} 14... Bxc3 {[%clk 0:04:37.1]} 15.
Qxd6 {[%clk 0:04:00.5]} 15... Bxb2+ {[%clk 0:04:34.8]} 16. Kxb2 {[%clk
0:03:58.5]} 16... Qb4+ {[%clk 0:04:34.4]} 17. Kc1 {[%clk 0:03:53.5]} 17... Qc3+
{[%clk 0:04:33.6]} 18. Kd1 {[%clk 0:03:52]} 18... Rad8 {[%clk 0:04:33.2]} 19.
Qxd8 {[%clk 0:03:47.9]} 19... Rxd8+ {[%clk 0:04:33.1]} 20. Ke2 {[%clk
0:03:46.6]} 20... Qd3+ {[%clk 0:04:29.8]} 21. Ke1 {[%clk 0:03:44.8]} 21... Qd1#
{[%clk 0:04:29.7]} 0-1

[Event "Live Chess"]
[Site "Chess.com"]
[Date "2023.05.21"]
[Round "-"]
[White "RichardABates"]
[Black "worldchessleaguelive"]
[Result "1-0"]
[WhiteElo "2144"]
[BlackElo "1364"]
[TimeControl "300"]
[EndTime "7:18:04 PDT"]
[Termination "RichardABates won by checkmate"]

1. d4 {[%clk 0:04:59.4]} 1... d5 {[%clk 0:04:58.6]} 2. c4 {[%clk 0:04:58.2]}
2... e6 {[%clk 0:04:56]} 3. Nf3 {[%clk 0:04:56.7]} 3... Nf6 {[%clk 0:04:52]} 4.
Nc3 {[%clk 0:04:44.9]} 4... Be7 {[%clk 0:04:48.3]} 5. cxd5 {[%clk 0:04:40.7]}
5... Nxd5 {[%clk 0:04:46.5]} 6. e4 {[%clk 0:04:38.8]} 6... Nxc3 {[%clk
0:04:45.4]} 7. bxc3 {[%clk 0:04:36.8]} 7... O-O {[%clk 0:04:45.1]} 8. Bd3 {[%clk
0:04:34.2]} 8... Nd7 {[%clk 0:04:43.3]} 9. e5 {[%clk 0:04:32.2]} 9... c5 {[%clk
0:04:39.9]} 10. h4 {[%clk 0:04:30.4]} 10... cxd4 {[%clk 0:04:38.9]} 11. Bxh7+
{[%clk 0:04:12.6]} 11... Kxh7 {[%clk 0:04:36.7]} 12. Ng5+ {[%clk 0:04:03.4]}
12... Bxg5 {[%clk 0:04:31.7]} 13. hxg5+ {[%clk 0:04:00.3]} 13... Kg6 {[%clk
0:04:29.6]} 14. Qh5+ {[%clk 0:03:56]} 14... Kf5 {[%clk 0:04:28.1]} 15. Qf3+
{[%clk 0:03:50.7]} 15... Kg6 {[%clk 0:04:23.5]} 16. Qe4+ {[%clk 0:03:48.4]}
16... f5 {[%clk 0:04:19.8]} 17. gxf6+ {[%clk 0:03:47.2]} 17... Kf7 {[%clk
0:04:17.5]} 18. Rh7 {[%clk 0:03:45.4]} 18... Rg8 {[%clk 0:04:06.1]} 19. Bg5
{[%clk 0:03:33.6]} 19... Qf8 {[%clk 0:03:35.4]} 20. Bh6 {[%clk 0:03:15.6]} 20...
Nxf6 {[%clk 0:03:13.2]} 21. exf6 {[%clk 0:03:13.3]} 21... Kxf6 {[%clk
0:03:12.3]} 22. Qf4+ {[%clk 0:02:55.6]} 22... Ke7 {[%clk 0:03:10.9]} 23. Bg5+
{[%clk 0:02:54.3]} 23... Kd7 {[%clk 0:03:08.5]} 24. Qxd4+ {[%clk 0:02:52.5]}
24... Kc6 {[%clk 0:03:00.1]} 25. Be3 {[%clk 0:02:44]} 25... Qf5 {[%clk
0:02:39.6]} 26. Qc4+ {[%clk 0:02:39.8]} 26... Kd7 {[%clk 0:02:32.5]} 27. Rd1+
{[%clk 0:02:37.8]} 27... Ke7 {[%clk 0:02:31.4]} 28. Qc7+ {[%clk 0:02:34]} 28...
Kf6 {[%clk 0:02:29]} 29. Rh4 {[%clk 0:02:25.7]} 29... g5 {[%clk 0:02:19.9]} 30.
Rh6+ {[%clk 0:02:21]} 30... Rg6 {[%clk 0:02:17.5]} 31. Rh7 {[%clk 0:02:18.8]}
31... Bd7 {[%clk 0:01:45.9]} 32. Rdxd7 {[%clk 0:02:07.7]} 32... Rf8 {[%clk
0:01:44.3]} 33. Rdf7+ {[%clk 0:02:05.2]} 33... Rxf7 {[%clk 0:01:42.9]} 34. Rxf7#
{[%clk 0:02:04]} 1-0

[Event "Live Chess"]
[Site "Chess.com"]
[Date "2023.05.21"]
[Round "-"]
[White "peleus16"]
[Black "elizaveta_frundina"]
[Result "1-0"]
[WhiteElo "1651"]
[BlackElo "1578"]
[TimeControl "300"]
[EndTime "7:18:28 PDT"]
[Termination "peleus16 won by resignation"]

1. d4 {[%clk 0:04:53.7]} 1... d5 {[%clk 0:04:58.5]} 2. Nc3 {[%clk 0:04:51.1]}
2... Nf6 {[%clk 0:04:57.6]} 3. Bf4 {[%clk 0:04:49.1]} 3... e5 {[%clk 0:04:56.6]}
4. dxe5 {[%clk 0:04:44.1]} 4... Nh5 {[%clk 0:04:48]} 5. Bg3 {[%clk 0:04:26.9]}
5... Nxg3 {[%clk 0:04:46]} 6. hxg3 {[%clk 0:04:23.7]} 6... Be6 {[%clk
0:04:42.4]} 7. Nf3 {[%clk 0:04:19.3]} 7... Bb4 {[%clk 0:04:38.1]} 8. Qd3 {[%clk
0:04:11.1]} 8... O-O {[%clk 0:04:27.8]} 9. a3 {[%clk 0:04:06.6]} 9... Bxc3+
{[%clk 0:04:16.2]} 10. Qxc3 {[%clk 0:04:03]} 10... Nc6 {[%clk 0:04:14.6]} 11.
O-O-O {[%clk 0:03:57.4]} 11... Qe7 {[%clk 0:04:08.5]} 12. Qd3 {[%clk 0:03:44.5]}
12... g6 {[%clk 0:03:58]} 13. Nh4 {[%clk 0:03:33.6]} 13... Qg5+ {[%clk
0:03:49.1]} 14. Kb1 {[%clk 0:03:27.7]} 14... Nxe5 {[%clk 0:03:41]} 15. Qc3
{[%clk 0:03:14.9]} 15... c5 {[%clk 0:03:31.1]} 16. f4 {[%clk 0:03:09.2]} 16...
d4 {[%clk 0:03:21.5]} 17. Qd2 {[%clk 0:02:54.5]} 17... Qxg3 {[%clk 0:03:05.6]}
18. fxe5 {[%clk 0:02:50]} 18... Qxe5 {[%clk 0:03:04.2]} 19. Qh6 {[%clk
0:02:41.5]} 19... Qd5 {[%clk 0:02:59.7]} 20. Nf5 {[%clk 0:02:20.4]} 20... Qa2+
{[%clk 0:02:37.9]} 21. Kc1 {[%clk 0:02:18.7]} 21... Qa1+ {[%clk 0:02:19.2]} 22.
Kd2 {[%clk 0:02:16.7]} 1-0

[Event "Live Chess"]
[Site "Chess.com"]
[Date "2023.05.21"]
[Round "-"]
[White "wot-not"]
[Black "mattihelenius2"]
[Result "1-0"]
[WhiteElo "1551"]
[BlackElo "495"]
[TimeControl "300"]
[EndTime "7:18:30 PDT"]
[Termination "wot-not won by resignation"]

1. e4 {[%clk 0:04:49.7]} 1... e5 {[%clk 0:04:57.5]} 2. Bc4 {[%clk 0:04:48.3]}
2... d6 {[%clk 0:04:55.6]} 3. Qf3 {[%clk 0:04:45.7]} 3... Be6 {[%clk 0:04:55.1]}
4. Bxe6 {[%clk 0:04:44]} 4... Qf6 {[%clk 0:04:49.4]} 5. Qxf6 {[%clk 0:04:40.8]}
5... Nxf6 {[%clk 0:04:49.3]} 6. Bb3 {[%clk 0:04:38.1]} 6... Nc6 {[%clk
0:04:47.3]} 7. f4 {[%clk 0:04:36.7]} 7... Nd4 {[%clk 0:04:45.1]} 8. Nf3 {[%clk
0:04:33.4]} 8... exf4 {[%clk 0:04:40.7]} 9. Nxd4 {[%clk 0:04:31]} 9... Nxe4
{[%clk 0:04:38.6]} 10. O-O {[%clk 0:04:29.3]} 10... Nxd2 {[%clk 0:04:36.5]} 11.
Bxd2 {[%clk 0:04:27.8]} 11... O-O-O {[%clk 0:04:32.7]} 12. Nc3 {[%clk
0:04:27.5]} 12... Re8 {[%clk 0:04:30.4]} 13. Bxf4 {[%clk 0:04:26.1]} 13... Be7
{[%clk 0:04:27.2]} 14. Rae1 {[%clk 0:04:22.4]} 14... f6 {[%clk 0:04:25.9]} 15.
Bg3 {[%clk 0:04:20.7]} 15... h5 {[%clk 0:04:19.2]} 16. Ncb5 {[%clk 0:04:19.4]}
16... a6 {[%clk 0:04:14.1]} 17. Nc3 {[%clk 0:04:14.5]} 17... g6 {[%clk
0:04:08.5]} 18. Nd5 {[%clk 0:04:12.8]} 18... c6 {[%clk 0:04:03.5]} 19. Nxe7+
{[%clk 0:04:10]} 19... Kd7 {[%clk 0:03:59.7]} 20. Nxg6 {[%clk 0:04:08.9]} 20...
Rxe1 {[%clk 0:03:57.6]} 21. Rxe1 {[%clk 0:04:07.7]} 21... Re8 {[%clk 0:03:55.1]}
22. Rxe8 {[%clk 0:04:06.2]} 22... Kxe8 {[%clk 0:03:54.3]} 23. Bxd6 {[%clk
0:04:05.6]} 23... Kd7 {[%clk 0:03:52.4]} 24. Be7 {[%clk 0:04:04.1]} 24... Ke8
{[%clk 0:03:51.1]} 25. Nf5 {[%clk 0:04:00.4]} 25... Kd7 {[%clk 0:03:49.2]} 26.
Bf7 {[%clk 0:03:57]} 26... b5 {[%clk 0:03:46.7]} 27. Kf2 {[%clk 0:03:55.1]}
27... Kc7 {[%clk 0:03:45.5]} 28. Ke3 {[%clk 0:03:53.2]} 28... Kb6 {[%clk
0:03:44.5]} 29. Kd4 {[%clk 0:03:52.1]} 29... Ka5 {[%clk 0:03:43.1]} 30. a3
{[%clk 0:03:50.7]} 30... Kb6 {[%clk 0:03:41.1]} 31. b4 {[%clk 0:03:49.4]} 31...
c5+ {[%clk 0:03:40.2]} 32. bxc5+ {[%clk 0:03:46.2]} 32... Ka5 {[%clk 0:03:38.8]}
33. c6 {[%clk 0:03:45.1]} 33... Kb6 {[%clk 0:03:37.8]} 34. Kd5 {[%clk
0:03:41.7]} 34... Kc7 {[%clk 0:03:36.7]} 35. Bd6+ {[%clk 0:03:39.8]} 35... Kb6
{[%clk 0:03:35]} 36. c7 {[%clk 0:03:38.5]} 36... Kb7 {[%clk 0:03:34]} 1-0